Cogmind - Beta 12 @@@ ROGUE MODE // 2023.03.03 @ 18:13:10 Player: Pogmind Result: Destroyed by 8R-AWN with 8R-AWN's Boregun Performance ------------- Evolutions (1) 500 Regions Visited (5) 1000 Robots Destroyed (93) 465 Value Destroyed (2442) 2442 Prototype IDs (28) 560 Alien Tech Used (0) 0 Bonus (-534) -534 TOTAL SCORE: 4433 Bonus ------- High Alert Combat Kills 4 Aligned with FarCom 300 Friendly Fire -838 Cogmind --------- Core Integrity 0/400 Matter 41/300 Energy 72/100 System Corruption 1% Temperature Cool (0) Movement Treading (160) Location -9/Exiles Parts ------- > --- POWER (1) -------- (None) > --- PROPULSION (3) --- Light Treads Light Treads Improved Treads > --- UTILITY (3) ------ Disposable Heat Sink High-capacity Storage Unit Trap Extractor (0/4) > --- WEAPON (2) ------- Heavy Assault Rifle Heavy Assault Rifle > --- INVENTORY (20) --- Cooled Ion Engine Reinforced Deuterium Engine Light Fission Core Light Fission Core Heavy Assault Rifle Rocket Launcher Rocket Launcher Peak State ------------ > --- POWER ------------ Cooled Ion Engine > --- PROPULSION ------- Light Treads Light Treads Light Treads > --- UTILITY ---------- Disposable Heat Sink High-capacity Storage Unit Light Armor Plating > --- WEAPON ----------- Advanced Beam Rifle Advanced Beam Rifle > --- INVENTORY -------- Cooled Ion Engine Light Treads Light Treads Light Treads Improved Treads Disposable Heat Sink High-capacity Matter Pod Light Armor Plating Light Armor Plating Light Armor Plating Trap Extractor Advanced Beam Rifle Advanced Beam Rifle Heavy Assault Rifle Heavy Assault Rifle Heavy Assault Rifle Autogun Autogun Rocket Launcher Rocket Launcher [Rating: 21] Favorites ----------- Power Ion Engine Engine Ion Engine Propulsion Light Treads Treads Light Treads Utility Light Armor Plating Device Seismic Detector Storage High-capacity Storage Unit Protection Light Armor Plating Weapon Light EM Pulse Cannon Energy Gun Advanced Beam Rifle Energy Cannon Light EM Pulse Cannon Ballistic Gun Assault Rifle Ballistic Cannon Light Cannon Launcher Rocket Launcher Impact Weapon Flail Special Melee Weapon Improved Datajack Build | -11 -10 -10 -9 -9 -9 ------- Run | Jun Mat Min Mat Min Exi Slots Evolved 2 | . . . 2 . . Power . | . . . . . . Propulsion 1 | . . . 1 . . Utility 1 | . . . 1 . . Weapon . | . . . . . . Parts Attached 146 | 8 29 6 74 9 20 Power 3 | 1 1 . 1 . . Engine 3 | 1 1 . 1 . . Core . | . . . . . . Reactor . | . . . . . . Propulsion 16 | 2 . . 9 1 4 Treads 16 | 2 . . 9 1 4 Leg . | . . . . . . Wheel . | . . . . . . Hover . | . . . . . . Flight . | . . . . . . Utility 59 | 2 15 5 22 6 9 Device 37 | 1 13 5 12 2 4 Storage 4 | 1 2 . . . 1 Processor . | . . . . . . Hackware . | . . . . . . Protection 18 | . . . 10 4 4 Artifact . | . . . . . . Weapon 68 | 3 13 1 42 2 7 Energy Gun 6 | 1 . . 4 1 . Energy Cannon 20 | . 8 1 11 . . Ballistic Gun 32 | 2 5 . 20 . 5 Ballistic Cannon 1 | . . . 1 . . Launcher 7 | . . . 4 1 2 Special Weapon . | . . . . . . Impact Weapon 1 | . . . 1 . . Slashing Weapon . | . . . . . . Piercing Weapon . | . . . . . . Special Melee Weapon 1 | . . . 1 . . Unidentified Prototypes 5 | . . . 5 . . Parts Lost 17 | . 1 1 4 . 11 Power 1 | . . . . . 1 Propulsion 5 | . . . 1 . 4 Utility 5 | . . . 1 . 4 Weapon 6 | . 1 1 2 . 2 Highest Loss Streak 11 | . 1 1 1 . 11 To Critical Strikes 4 | . . . . . 4 Average Slot Usage (%) 96 | . 99 100 96 100 79 Engine 12 | . 14 14 11 11 10 Treads 29 | . 28 28 30 33 33 Device 8 | . 14 14 4 2 1 Storage 12 | . 14 14 11 11 11 Protection 9 | . . . 16 19 20 Energy Gun 2 | . . . 1 19 . Energy Cannon 13 | . 24 28 4 . . Ballistic Gun 6 | . 3 . 15 . 2 Naked Turns . | . . . . . . Heaviest Build 61 | 14 54 54 61 60 61 Greatest Support 63 | 40 40 40 63 60 63 Greatest Overweight (x) 1 | . 1 1 1 . 1 Average Overweight (x) . | . . 1 . . . Largest Inventory Capacity 20 | 8 20 20 20 20 20 Average Capacity 18 | 7 17 20 20 20 20 Most Carried 20 | 4 20 20 20 20 20 Average Carried 17 | 3 14 19 19 20 18 Final Capacity 20 | 8 20 20 20 20 20 Final Carried 20 | 4 20 19 20 20 7 Class Distribution -------------------- 99% | Mutant Dominant Class ---------------- Mutant | -10/Materials Mutant | -10/Mines Mutant | -9/Materials Mutant | -9/Mines Mutant | -9/Exiles Resources | -11 -10 -10 -9 -9 -9 ----------- Run | Jun Mat Min Mat Min Exi Matter Collected 2970 | 320 712 53 1287 228 370 Remotely . | . . . . . . Salvage Created 3443 | 145 862 489 1503 434 10 Parts 205 | 13 53 25 97 17 . Haulers Intercepted 6 | . 2 . 4 . . Recyclers Shooed 2 | . . . 1 1 . Parts Field Recycled . | . . . . . . Retrieved Matter . | . . . . . . Parts Self-Destructed . | . . . . . . Prevented . | . . . . . . Kills | -11 -10 -10 -9 -9 -9 ------- Run | Jun Mat Min Mat Min Exi Combat Hostiles Destroyed 63 | . 15 8 30 8 2 Guns 18 | . . . 10 8 . Cannons 28 | . 11 6 11 . . AOE 11 | . 1 1 7 . 2 Classes Destroyed 14 | 2 4 1 4 2 1 Worker 6 | . . 1 5 . . Builder 1 | . . . 1 . . Tunneler 5 | 5 . . . . . Hauler 6 | . 2 . 4 . . Recycler 4 | 1 . 1 . 2 . Operator 2 | . 2 . . . . Watcher 8 | . 3 . 5 . . Swarmer 7 | . . . 7 . . Grunt 42 | . 15 8 14 5 . Brawler 2 | . . . . 2 . Duelist 1 | . . . 1 . . Sentry 8 | . . . 8 . . Demolisher 1 | . . . . 1 . Assembled 6 | . . . . . 6 Best Kill Streak 6 | 3 3 3 6 3 2 Combat Bots Only 4 | . 3 2 4 3 2 Max Kills in Single Turn 4 | 1 2 1 4 1 4 Gunslinging 1 | . . . 1 . . Exploded 3 | . 1 1 3 . 2 Melee . | . . . . . . Uniques/NPCs Destroyed . | . . . . . . Combat | -11 -10 -10 -9 -9 -9 -------- Run | Jun Mat Min Mat Min Exi Damage Taken 3367 | . 296 119 1113 247 1592 Core 484 | . 24 45 178 10 227 Absorbed by Shields . | . . . . . . Regen/Repaired (Parts) 416 | . . . 416 . . Core Remaining (%) 86 | 100 . 72 . . . Volleys Fired 246 | 10 49 16 98 18 55 Largest 2 | 2 2 2 2 2 2 Hottest 122 | 40 112 112 112 122 66 Shots Fired 473 | 20 83 32 192 36 110 Gun 328 | 20 24 . 142 36 106 Cannon 138 | . 59 32 47 . . Launcher 7 | . . . 3 . 4 Special . | . . . . . . Kinetic 295 | 20 24 . 145 . 106 Thermal 46 | . . . 10 36 . Explosive 7 | . . . 3 . 4 Electromagnetic 125 | . 59 32 34 . . Robot Hit Streak 19 | 3 10 15 19 16 18 Robot Miss Streak 4 | 1 2 2 3 4 3 Penetration Max . | . . . . . . Secondary Targets 2 | . . . 1 1 . Max Gunslinging Chain 1 | . . . 1 1 . Shots Hit Robots 345 | 11 60 25 136 26 87 Core Hits 138 | 10 27 12 54 11 24 Critical Kills 1 | . . . 1 . . Critical Parts Destroyed 1 | . . . . . 1 Critical Strikes 12 | . 4 . 1 5 2 Burn 5 | . . . . 5 . Meltdown 1 | . . . 1 . . Destroy 2 | . . . . . 2 Corrupt 4 | . 4 . . . . Melee Attacks 1 | . . . 1 . . Impact 1 | . . . 1 . . Slashing . | . . . . . . Piercing . | . . . . . . Sneak Attacks . | . . . . . . Combat Hostiles . | . . . . . . Follow-up Attacks . | . . . . . . Damage Inflicted 7701 | 115 1542 662 2967 602 1813 Guns 3666 | 115 211 . 1521 542 1277 Cannons 2544 | . 1129 591 824 . . Explosions 1347 | . 179 51 581 . 536 Melee . | . . . . . . Ramming 144 | . 23 20 41 60 . Kinetic 3124 | 115 211 . 1521 . 1277 Thermal 1106 | . 179 51 334 542 . Explosive 962 | . . . 426 . 536 Electromagnetic 2365 | . 1129 591 645 . . Impact . | . . . . . . Slashing . | . . . . . . Piercing . | . . . . . . Highest Corruption 1 | . . . 1 1 1 Average Corruption 1 | . . . 1 1 1 Corruption Purged . | . . . . . . Corruption Blocked . | . . . . . . Effects 40 | . . . 21 8 11 Message Errors 10 | . . . 6 1 3 Matter Fused 12 | . . . 7 3 2 Heat Flow Errors 7 | . . . 5 1 1 Energy Discharges 6 | . . . 2 . 4 Data Loss (minor) 5 | . . . 1 3 1 Overload Shots . | . . . . . . Overflow Damage 95 | . 8 . 45 20 22 Projectiles 28 | . 8 . 20 . . Explosions 47 | . . . 25 . 22 Melee 20 | . . . . 20 . Knockbacks 1 | . 1 . . . . Impact 1 | . 1 . . . . Kinetic . | . . . . . . Secondary . | . . . . . . Self-Inflicted Damage 15 | . 5 . 10 . . Shots 2 | . 1 . 1 . . Rammed 23 | . 7 5 6 5 . Targets Rammed 25 | . 7 6 7 5 . Kicked . | . . . . . . Crushed 2 | . . 1 1 . . Highest Temperature 278 | . 186 75 239 193 278 Average Temperature 52 | . 54 30 41 96 50 Received Heat Transfer 770 | . 162 72 411 105 20 Siege Activations . | . . . . . . Robots Corrupted 5 | . 3 1 1 . . Combat Hostiles 5 | . 3 1 1 . . Parts Fried 14 | . 7 6 1 . . Impact Corruptions 1 | . . . . 1 . Robots Melted 1 | . . . 1 . . Combat Hostiles 1 | . . . 1 . . Parts Melted 3 | . . . 2 1 . Heat Transferred 1978 | . 200 . 446 1332 . Parts Sabotaged . | . . . . . . Parts Stolen . | . . . . . . Parts Stripped . | . . . . . . Power Chain Reactions 8 | . 5 1 2 . . Missiles Intercepted . | . . . . . . Alert | -11 -10 -10 -9 -9 -9 ------- Run | Jun Mat Min Mat Min Exi Peak Influence 446 | 30 142 93 446 116 . Initial 66 | . 19 28 . 66 . Average 88 | 15 64 35 154 52 . Maximum Alert Level 2 | . . . 2 . . Low Security (%) 91 | 100 100 100 74 100 . Level 1 8 | . . . 23 . . Level 2 . | . . . 2 . . Level 3 . | . . . . . . Level 4 . | . . . . . . Level 5 . | . . . . . . High Security . | . . . . . . Max Security . | . . . . . . Squads Dispatched 8 | . 5 . 3 . . Investigation 5 | . 3 . 2 . . Extermination . | . . . . . . Reinforcement 3 | . 2 . 1 . . Assault . | . . . . . . Garrison . | . . . . . . Intercept . | . . . . . . Searches Triggered . | . . . . . . Construction Impeded . | . . . . . . Haulers Reinforced . | . . . . . . Active Scanning Responses . | . . . . . . Cargo Convoy Interrupts . | . . . . . . Stealth | -11 -10 -10 -9 -9 -9 --------- Run | Jun Mat Min Mat Min Exi Distress Signals 7 | . 4 . 3 . . Communications Jammed . | . . . . . . Distress Signals . | . . . . . . Times Spotted 83 | . 22 9 40 8 4 Peak Tracking Total 6 | . 3 2 6 3 5 Tactical Retreats 8 | . 3 1 4 . . Traps | -11 -10 -10 -9 -9 -9 ------- Run | Jun Mat Min Mat Min Exi Traps Triggered 2 | . . . 2 . . Indirectly . | . . . . . . Trap Hack Attempts 14 | . . . 14 . . Triggered . | . . . . . . Disarmed . | . . . . . . Reprogrammed 3 | . . . 3 . . Reused 1 | . . . . . 1 Traps Extracted 3 | . . . 3 . . Installed 2 | . . . . . 2 Triggered . | . . . . . . Most Traps Carried 3 | . . . 3 3 3 Machines | -11 -10 -10 -9 -9 -9 ---------- Run | Jun Mat Min Mat Min Exi Machines Disabled 7 | . 2 1 2 . 2 Max in Single Turn 2 | . 1 . 1 . 2 Machines Repaired . | . . . . . . Machines Sabotaged . | . . . . . . Overloaded Fab Kills . | . . . . . . Hacking | -11 -10 -10 -9 -9 -9 --------- Run | Jun Mat Min Mat Min Exi Machines Accessed 25 | . 7 1 15 . 2 Terminals 17 | . 5 1 11 . . Fabricators . | . . . . . . Repair Stations 2 | . . . 2 . . Recycling Units 3 | . 2 . 1 . . Scanalyzers 1 | . . . 1 . . Garrison Access . | . . . . . . Total Hacks 104 | . 21 2 57 . 24 Successful 77 | . 11 . 42 . 24 Failed 25 | . 9 2 14 . . Catastrophic 3 | . 1 . 2 . . Database Lockouts 2 | . 1 . 1 . . Manual 47 | . 19 . 27 . 1 Terminals 62 | . 19 2 41 . . Fabricators . | . . . . . . Repair Stations 10 | . . . 10 . . Recycling Units 3 | . 2 . 1 . . Scanalyzers 5 | . . . 5 . . Garrison Access . | . . . . . . Terminal Hacks 51 | . 6 . 21 . 24 Record 23 | . . . . . 23 Robot Analysis 6 | . 2 . 4 . . Branch Access Points 1 | . . . 1 . . Terminal Index 1 | . . . 1 . . Alert Level 8 | . 1 . 7 . . Unreport Threat 2 | . . . 2 . . Locate Traps 6 | . 3 . 3 . . Hauler Manifests 2 | . . . 2 . . Zone Layout 1 | . . . 1 . . EX-Prototype ID Bank 1 | . . . . . 1 Fabricator Hacks . | . . . . . . Repair Station Hacks 10 | . . . 10 . . Scan Component 5 | . . . 5 . . Repair 5 | . . . 5 . . Recycling Unit Hacks . | . . . . . . Scanalyzer 5 | . . . 5 . . Insert Component 2 | . . . 2 . . Analyze 3 | . . . 3 . . Garrison Access Hacks . | . . . . . . Unauthorized Hacks 11 | . 5 . 6 . . Terminals 8 | . 3 . 5 . . Assimilate 1 | . . . 1 . . Botnet 5 | . 2 . 3 . . Operators 2 | . 1 . 1 . . Fabricators . | . . . . . . Repair Stations . | . . . . . . Recycling Units 3 | . 2 . 1 . . Tunnel 3 | . 2 . 1 . . Scanalyzers . | . . . . . . Garrison Access . | . . . . . . Data Cores Recovered . | . . . . . . Used . | . . . . . . Hacking Detections 17 | . 5 1 11 . . Full Trace Events 1 | . 1 . . . . Feedback Events . | . . . . . . Feedback Blocked . | . . . . . . Robot Schematics Acquired . | . . . . . . Robots Built . | . . . . . . Authchips . | . . . . . . Time . | . . . . . . Total Robot Build Rating . | . . . . . . Part Schematics Acquired 2 | . . . 2 . . Parts Built . | . . . . . . Authchips . | . . . . . . Time . | . . . . . . Total Part Build Rating . | . . . . . . Parts Repaired 5 | . . . 5 . . Time 130 | . . . 130 . . Parts Recycled . | . . . . . . Recycled Matter . | . . . . . . Retrieved Matter . | . . . . . . Retrieved Components . | . . . . . . Parts Scanalyzed 2 | . . . 2 . . Part Schematics Acquired 2 | . . . 2 . . Parts Damaged . | . . . . . . Bothacking | -11 -10 -10 -9 -9 -9 ------------ Run | Jun Mat Min Mat Min Exi Used RIF Installer . | . . . . . . Robots Hacked . | . . . . . . Non-combat . | . . . . . . Combat . | . . . . . . Robot Hacks Applied . | . . . . . . Relay Couplers Released . | . . . . . . Fabnet Peak Effective % . | . . . . . . Robots Rewired . | . . . . . . Allies Hacked . | . . . . . . Hacks Repelled . | . . . . . . Allies | -11 -10 -10 -9 -9 -9 -------- Run | Jun Mat Min Mat Min Exi Total Allies 2 | . . 1 1 . . Largest Group 1 | . . 1 1 . . Highest-Rated Group 31 | . . 31 10 . . Highest-Rated Ally 31 | . . 31 10 . . Total Orders . | . . . . . . Ally Attacks 8 | . . 8 . . . Total Damage 106 | . . 106 . . . Kills . | . . . . . . Allies Corrupted . | . . . . . . Allies Melted . | . . . . . . Intel | -11 -10 -10 -9 -9 -9 ------- Run | Jun Mat Min Mat Min Exi Robot Analysis Total 6 | . 2 . 4 . . Derelict Logs Recovered 3 | . . 1 . 2 . Drone Launches . | . . . . . . Drone Recoveries . | . . . . . . Exploration | -11 -10 -10 -9 -9 -9 ------------- Run | Jun Mat Min Mat Min Exi Turns Passed 13528 | 178 4824 1699 4070 1365 1392 Spaces Moved 5526 | 85 1759 622 1646 668 746 Core 2 | 2 . . . . . Treads 5524 | 83 1759 622 1646 668 746 Legs . | . . . . . . Wheels . | . . . . . . Hover . | . . . . . . Flight . | . . . . . . Fastest Speed 50 | 50 160 240 160 160 160 Average Speed 193 | 157 207 240 189 160 160 Slowest Speed 240 | 160 240 240 240 160 240 Overloaded Moves . | . . . . . . Propulsion Burnouts . | . . . . . . Robots Hopped . | . . . . . . Cave-ins Triggered . | . . . . . . Exploration Rate (%) 77 | 6 99 97 94 97 69 Regions Visited 5 Branch Regions 3 Pre-discovered Areas 5 | . 2 1 1 . 1 Known Exits Taken 1 | . . . 1 . . Unknown Exits Taken 4 | 1 1 1 . 1 . Scrap Searched 4 | . . 3 . 1 . Spaces Dug 1 | . . . 1 . . Terrain Destroyed 65 | . 10 9 24 . 22 Melee 1 | . . . 1 . . Projectile . | . . . . . . AOE 64 | . 10 9 23 . 22 Terrain Rammed . | . . . . . . Walls Destroyed . | . . . . . . Machines Disabled . | . . . . . . Actions | -11 -10 -10 -9 -9 -9 --------- Run | Jun Mat Min Mat Min Exi Total 7894 | 108 2833 789 2396 922 846 Wait 1794 | 2 952 136 480 221 3 Move 5521 | 84 1758 621 1645 667 746 Hop . | . . . . . . Pick Up 71 | 3 24 2 34 . 8 Fast Attach 29 | 8 3 . 17 1 . Attach 21 | . . 1 8 . 12 Detach 4 | 1 1 . 2 . . Swap 97 | . 26 5 50 8 8 Drop 69 | . 13 2 40 2 12 Fire 246 | 10 49 16 98 18 55 Melee 1 | . . . 1 . . Ram . | . . . . . . Kick . | . . . . . . Crush 25 | . 7 6 7 5 . Escape Stasis . | . . . . . . Rewire . | . . . . . . Trap 16 | . . . 14 . 2 Miscellaneous . | . . . . . . Route ------- -11/Junkyard -10/Materials (discovered 4 exits: *Mat x3 / *Min) -10/Mines (discovered 2 exits: *Mat x2) -9/Materials (discovered 4 exits: [*Mat x3] / *Min) -9/Mines (discovered 3 exits: [*Mat x2] / *Exi) -9/Exiles (discovered 1 exit: [*Min]) History --------- Turn | Location | Event 40 | -11/Junkyard | Discovered new exit (range 14) 179 | -11/Junkyard | Entered Materials 333 | -10/Materials | Build established: Mutant 1114 | -10/Materials | Discovered new exit (range 15) 1516 | -10/Materials | Discovered new exit (range 16) 1921 | -10/Materials | Discovered new exit (range 10) 2554 | -10/Materials | Discovered new exit (range 16) 2557 | -10/Materials | Central database locked down 5003 | -10/Materials | Entered Mines 5006 | -10/Mines | Received a Mining Laser from a helpful Derelict 5124 | -10/Mines | Discovered new exit (range 11) 5530 | -10/Mines | Discovered new exit (range 6) 5774 | -10/Mines | Received a Rocket Launcher from a helpful Derelict 6443 | -10/Mines | A weapon hastily lodged in a ceiling crevice suddenly fell to the ground 6702 | -10/Mines | Entered Materials 6702 | -9/Materials | Evolved 2 slots: Propulsion x1, Utility x1 7107 | -9/Materials | Identified exit to Mines 7111 | -9/Materials | Discovered new exit (range 16) 7647 | -9/Materials | Central database locked down 8905 | -9/Materials | Repaired Lgt. Armor Plating 8933 | -9/Materials | Repaired Lgt. Treads 8960 | -9/Materials | Repaired Lgt. Treads 9417 | -9/Materials | Discovered new exit (range 15) 10129 | -9/Materials | Discovered new exit (range 4) 10657 | -9/Materials | Repaired Lgt. Armor Plating 10684 | -9/Materials | Repaired Lgt. Armor Plating 10772 | -9/Materials | Entered Mines 10835 | -9/Mines | Learned location of 1 exit from Lower Caves 10929 | -9/Mines | Discovered new exit (range 4) 11018 | -9/Mines | Found a hidden stash of uninstalled traps 11047 | -9/Mines | Assembled infested the area 11479 | -9/Mines | Discovered new exit (range 5) 11570 | -9/Mines | Deemed a non-threat by the Exiles lab entrance 11619 | -9/Mines | Learned Materials security intel 12130 | -9/Mines | Discovered new exit (range 5) 12137 | -9/Mines | Entered Exiles 12178 | -9/Exiles | Met 8R-AWN 12204 | -9/Exiles | Met EX-HEX 12292 | -9/Exiles | Met EX-DEC 12321 | -9/Exiles | Learned location of Zion (-7) 12487 | -9/Exiles | Met EX-BIN 12505 | -9/Exiles | Aligned with FarCom system 12506 | -9/Exiles | Given EX-Vault access code 12546 | -9/Exiles | Opened EX-Vault 12586 | -9/Exiles | Warned to stay clear of 0b10 Research branches 12692 | -9/Exiles | Discovered new exit (range 15) 13314 | -9/Exiles | Warned about trapping Exiles lab 13343 | -9/Exiles | Attacked by the Exiles 13382 | -9/Exiles | Core integrity fell below 50% 13483 | -9/Exiles | Core integrity fell below 20% 13509 | -9/Exiles | Lost 11 parts (1p4n4u2w) 13529 | -9/Exiles | Destroyed by 8R-AWN with 8R-AWN's Boregun Last Messages --------------- 13447_ Penetrated by HV Slug. 13451_ HV Slug penetrates Wall. 13455_ 8R-AWN suffers critical hit (Destroy). 13455_ Destroyed Prototype Device. 13457_ HV Slug penetrates Wall. 13457_ Penetrated by HV Slug. 13461_ Critical hit (Destroy). 13461_ Lgt. Armor Plating destroyed. 13465_ Penetrated by HV Slug. 13478_ Lgt. Armor Plating destroyed. 13478_ Penetrated by HV Slug. 13478_ Critical hit (Destroy). 13478_ Autogun destroyed. 13482_ Penetrated by HV Slug. 13484_ S4NGRXAN,QWG1 I 13486_ Penetrated by HV Slug. 13496_ Extracted 100 matter. 13499_ Penetrated by HV Slug. 13503_ HV Slug penetrates Machine. 13508_ Penetrated by HV Slug. Map ----- +----------------------------------------------------+ | """#?????????????????????????????????? | | """#?????????????????????????????????? | | """#?????????????????????????????????? | | """#?????????????????????????????????? | | """##????????????????????????????????? | | """""????????????????????????????????? | | """##????????????????????????????????? | | " "X" """""????????????????????????????????? | | " """ #?????????????????????????????????? | | " """""""""#?????????????????????????????????? | | " ###########?????????????????????????????????? | | " #???????????????????????????????????????????? | | #???????????????????????????????????????????? | | ##??????? ??????????????????????????????????? | | ##???####;######???????????????????????????? | | #####"""" """"##??????????????????????????? | | " """ """"##?????????????????????????? | | " " #?????????????????????????? | | """#?????????????????????????? | | a"#???????????#####?????????? | | " "##?????????##" #?????????? | | "###???????#" ^ #?????????? | | """ ""#??????##" ##????????? | | ##""" "#????### ###??????? | | ?#####""" !!##???# ######## | | ?????##""" !@ ##?## #""""## | | ??????#"""" g### | | ?????##"" ^ ## | | ??####"""" & #### | | ###""" ""#?#"""""#### | | """" a #"""##?#######??#### | | ######??????????????# | | ##???????????????????? | | ##????????????????????? | | "" "" ""#?????????????????????? | | # ##""" " " ""# "##?????????????????????? | | # ######""" """# #??????????????????????? | | # #????###""""### # ### #???????????????????????? | | # ####???######?# ????????????????????????? | | "!#???????????? # ? #????????????????????????? | | " !#????????????????#?????????????????????????? | | " "#??????????????????????????????????????????? | | !!""!"#??????????????????????????????????????????? | | #######??????????????????????????????????????????? | | ?????????????????????????????????????????????????? | | ?????????????????????????????????????????????????? | | ?????????????????????????????????????????????????? | | ?????????????????????????????????????????????????? | | ?????????????????????????????????????????????????? | | ?????????????????????????????????????????????????? | +----------------------------------------------------+ Best States ------------- Heat Dissipation 38 Coolant Potential 50 Energy Generation 14 Energy Capacity 280 Matter Stores 300 Matter Capacity 300 Sight Range 16 Terrain Scan Density 10 Armor Coverage 300 Evasion (%) 40 Recoil Reduction 3 Trap Extractor Capacity 4 Item Schematics ----------------- Heat Sink | -9/Materials | Scanalyzed Flail | -9/Materials | Scanalyzed Robot Schematics ------------------ None Fabricated ------------ Nothing Alien Tech Used ----------------- None Achievements -------------- None Challenges ------------ None Game ------ Seed fissionfissionanalyzer Manual? 1 Play Time 01:20:56 Cumulative 627.4 hours Start 2023.03.03 @ 13:00:22 End 2023.03.03 @ 18:13:10 Sessions 3 Manual Loads 0 Difficulty Rogue Special Mode None Game No. 72 Rogue 57 Adventurer 5 Explorer 10 Win Type - Total 26 Types 6/7/5/0/3/1/3/0/1 Lore% 89 Gallery% 94 Achievement% 85 Wizard Run 0 Options --------- ASCII 0 Keyboard 1 Movement Arrows Keybinds 0 Fullscreen 2 Font 18/SmallcapsGlow Map View 76x50 Tactical HUD 1 Map Filters NONE Filters NONE Steam 1 RUN: f7648106-7b1c-48f7-9d98-db81f4266d4e